[Event "Early-Titled-Tuesday-Blitz-March-12-2024"]
[Site "Chess.com"]
[Date "2024.03.12"]
[Round "3"]
[White "Alexchess1984"]
[Black "josephymwale33"]
[Result "1-0"]
[WhiteElo "2743"]
[BlackElo "2511"]
[TimeControl "180+1"]
[EndTime "8:27:51 PDT"]
[Termination "Alexchess1984 won by resignation"]

1. e4 {[%clk 0:03:00.9]} 1... d5 {[%clk 0:02:59.6]} 2. exd5 {[%clk 0:03:00.1]}
2... Nf6 {[%clk 0:02:59.8]} 3. d4 {[%clk 0:02:54.7]} 3... Bg4 {[%clk 0:02:59.2]}
4. f3 {[%clk 0:02:51.2]} 4... Bf5 {[%clk 0:02:58.8]} 5. c4 {[%clk 0:02:50.9]}
5... e6 {[%clk 0:02:58.8]} 6. dxe6 {[%clk 0:02:50.9]} 6... Nc6 {[%clk 0:02:59]}
7. Be3 {[%clk 0:02:40.1]} 7... fxe6 {[%clk 0:02:47.1]} 8. Nc3 {[%clk 0:02:37.9]}
8... Bb4 {[%clk 0:02:46.6]} 9. a3 {[%clk 0:02:34.7]} 9... Bxc3+ {[%clk
0:02:46.2]} 10. bxc3 {[%clk 0:02:35.6]} 10... O-O {[%clk 0:02:45.8]} 11. Bd3
{[%clk 0:02:33.7]} 11... Qe7 {[%clk 0:02:40.8]} 12. Ne2 {[%clk 0:02:31]} 12...
Rad8 {[%clk 0:02:35.9]} 13. O-O {[%clk 0:02:28.6]} 13... Bxd3 {[%clk 0:02:29]}
14. Qxd3 {[%clk 0:02:28.2]} 14... Ne5 {[%clk 0:02:29.6]} 15. Qc2 {[%clk
0:02:20.8]} 15... Nxc4 {[%clk 0:02:29.5]} 16. Bf2 {[%clk 0:02:18.9]} 16... Nd5
{[%clk 0:02:28.2]} 17. Qd3 {[%clk 0:02:08.3]} 17... b5 {[%clk 0:02:12.9]} 18. a4
{[%clk 0:01:55.3]} 18... a6 {[%clk 0:02:12.5]} 19. axb5 {[%clk 0:01:54.5]} 19...
axb5 {[%clk 0:02:13.4]} 20. Rfe1 {[%clk 0:01:41]} 20... Qg5 {[%clk 0:01:57.2]}
21. Ng3 {[%clk 0:01:37]} 21... Nf4 {[%clk 0:01:39.7]} 22. Qe4 {[%clk 0:01:25]}
22... e5 {[%clk 0:01:30.1]} 23. Ra7 {[%clk 0:00:58.1]} 23... exd4 {[%clk
0:01:01.6]} 24. Bxd4 {[%clk 0:00:56.1]} 24... h5 {[%clk 0:00:58.5]} 25. Qe7
{[%clk 0:00:41.7]} 25... Rde8 {[%clk 0:00:29.2]} 26. Qxg5 {[%clk 0:00:39.9]}
26... Rxe1+ {[%clk 0:00:28.7]} 27. Nf1 {[%clk 0:00:39.9]} 27... Ne6 {[%clk
0:00:12.1]} 28. Qg3 {[%clk 0:00:24.4]} 28... Rd1 {[%clk 0:00:08]} 29. Rxc7
{[%clk 0:00:21.6]} 29... Rxd4 {[%clk 0:00:04.7]} 30. cxd4 {[%clk 0:00:15.3]} 1-0

[Event "Early-Titled-Tuesday-Blitz-March-12-2024"]
[Site "Chess.com"]
[Date "2024.03.12"]
[Round "3"]
[White "IsaqueGoncalvesSanto"]
[Black "jaskol95"]
[Result "1/2-1/2"]
[WhiteElo "1818"]
[BlackElo "2559"]
[TimeControl "180+1"]
[EndTime "8:27:53 PDT"]
[Termination "Game drawn by repetition"]

1. d4 {[%clk 0:02:55.4]} 1... d5 {[%clk 0:02:58.3]} 2. c4 {[%clk 0:02:54.6]}
2... e5 {[%clk 0:02:58.7]} 3. dxe5 {[%clk 0:02:54.2]} 3... d4 {[%clk 0:02:59.3]}
4. Nf3 {[%clk 0:02:54.5]} 4... Nc6 {[%clk 0:02:59.9]} 5. Bg5 {[%clk 0:02:54.4]}
5... Be7 {[%clk 0:02:58.6]} 6. Bf4 {[%clk 0:02:54.4]} 6... f6 {[%clk 0:02:57.9]}
7. exf6 {[%clk 0:02:53.8]} 7... Nxf6 {[%clk 0:02:58.2]} 8. h3 {[%clk 0:02:52.6]}
8... O-O {[%clk 0:02:58]} 9. Nbd2 {[%clk 0:02:52.3]} 9... Bb4 {[%clk 0:02:35.8]}
10. a3 {[%clk 0:02:49.5]} 10... Be7 {[%clk 0:02:28.9]} 11. Qc2 {[%clk
0:02:38.8]} 11... a5 {[%clk 0:02:14.8]} 12. e3 {[%clk 0:02:25.9]} 12... Bc5
{[%clk 0:02:09.6]} 13. Nb3 {[%clk 0:02:21.9]} 13... Ba7 {[%clk 0:02:04.9]} 14.
c5 {[%clk 0:02:09.8]} 14... dxe3 {[%clk 0:02:02.7]} 15. Bxe3 {[%clk 0:02:09.2]}
15... Nd5 {[%clk 0:01:53.4]} 16. Bc4 {[%clk 0:02:07.8]} 16... Kh8 {[%clk
0:01:33.4]} 17. O-O-O {[%clk 0:02:00.2]} 17... Nce7 {[%clk 0:01:09.6]} 18. Bg5
{[%clk 0:01:49.7]} 18... Bf5 {[%clk 0:01:02.6]} 19. Qe2 {[%clk 0:01:36.5]} 19...
Qe8 {[%clk 0:00:37.2]} 20. Bxd5 {[%clk 0:01:30.8]} 20... Nxd5 {[%clk 0:00:37.7]}
21. Qxe8 {[%clk 0:01:29.5]} 21... Raxe8 {[%clk 0:00:38.6]} 22. Rxd5 {[%clk
0:01:27.5]} 22... Be4 {[%clk 0:00:38.9]} 23. Rd4 {[%clk 0:01:03.1]} 23... Bxf3
{[%clk 0:00:37.6]} 24. gxf3 {[%clk 0:01:03.3]} 24... Rxf3 {[%clk 0:00:38]} 25.
Be3 {[%clk 0:01:03.5]} 25... h6 {[%clk 0:00:35.7]} 26. Kb1 {[%clk 0:00:57.8]}
26... b6 {[%clk 0:00:34.1]} 27. c6 {[%clk 0:00:56.4]} 27... b5 {[%clk
0:00:33.7]} 28. Rd7 {[%clk 0:00:56.1]} 28... Bxe3 {[%clk 0:00:33.5]} 29. fxe3
{[%clk 0:00:56.2]} 29... Rfxe3 {[%clk 0:00:34]} 30. Rxc7 {[%clk 0:00:56]} 30...
Rxb3 {[%clk 0:00:34.1]} 31. Rb7 {[%clk 0:00:31.6]} 31... Re2 {[%clk 0:00:23]}
32. c7 {[%clk 0:00:18.6]} 32... Rexb2+ {[%clk 0:00:18.3]} 33. Kc1 {[%clk
0:00:15.7]} 33... Rb1+ {[%clk 0:00:17.4]} 34. Kc2 {[%clk 0:00:16]} 34... R1b2+
{[%clk 0:00:17.7]} 35. Kc1 {[%clk 0:00:16.2]} 35... Rb1+ {[%clk 0:00:18.3]} 36.
Kc2 {[%clk 0:00:16.7]} 36... R1b2+ {[%clk 0:00:10.5]} 37. Kc1 {[%clk 0:00:16.6]}
1/2-1/2

[Event "Early-Titled-Tuesday-Blitz-March-12-2024"]
[Site "Chess.com"]
[Date "2024.03.12"]
[Round "3"]
[White "Zq1"]
[Black "David_George21"]
[Result "1-0"]
[WhiteElo "2557"]
[BlackElo "2293"]
[TimeControl "180+1"]
[EndTime "8:27:55 PDT"]
[Termination "Zq1 won by checkmate"]

1. d4 {[%clk 0:03:00.9]} 1... Nf6 {[%clk 0:02:59.5]} 2. c4 {[%clk 0:03:00.9]}
2... e6 {[%clk 0:02:59.3]} 3. g3 {[%clk 0:03:01.1]} 3... d5 {[%clk 0:02:58.2]}
4. Bg2 {[%clk 0:03:01.2]} 4... dxc4 {[%clk 0:02:57.8]} 5. Nf3 {[%clk 0:03:00.3]}
5... c5 {[%clk 0:02:55.7]} 6. O-O {[%clk 0:02:59.9]} 6... Nc6 {[%clk 0:02:53.8]}
7. dxc5 {[%clk 0:02:59.7]} 7... Qxd1 {[%clk 0:02:52.5]} 8. Rxd1 {[%clk
0:02:59.5]} 8... Bxc5 {[%clk 0:02:53.4]} 9. Nbd2 {[%clk 0:02:59.2]} 9... c3
{[%clk 0:02:52.9]} 10. bxc3 {[%clk 0:02:58.5]} 10... O-O {[%clk 0:02:52.9]} 11.
Ng5 {[%clk 0:02:57.5]} 11... Rd8 {[%clk 0:02:27.9]} 12. Bb2 {[%clk 0:02:56.2]}
12... Bd7 {[%clk 0:02:12.9]} 13. Nde4 {[%clk 0:02:53]} 13... Nxe4 {[%clk
0:02:04.3]} 14. Nxe4 {[%clk 0:02:52.2]} 14... Be7 {[%clk 0:02:04.4]} 15. Nd6
{[%clk 0:02:52.3]} 15... Rab8 {[%clk 0:01:59.4]} 16. c4 {[%clk 0:02:51.7]} 16...
Na5 {[%clk 0:01:54.1]} 17. Be5 {[%clk 0:02:47]} 17... f6 {[%clk 0:01:44.9]} 18.
Bc3 {[%clk 0:02:33.4]} 18... Nc6 {[%clk 0:01:43.7]} 19. c5 {[%clk 0:02:28.9]}
19... b6 {[%clk 0:01:30]} 20. cxb6 {[%clk 0:02:28.5]} 20... Rxb6 {[%clk
0:01:27.4]} 21. Nc4 {[%clk 0:02:26.3]} 21... Ra6 {[%clk 0:01:24.9]} 22. Rd2
{[%clk 0:02:21.5]} 22... Kf7 {[%clk 0:01:10.3]} 23. Nd6+ {[%clk 0:02:14.6]}
23... Bxd6 {[%clk 0:01:06.1]} 24. Rxd6 {[%clk 0:02:13.7]} 24... Be8 {[%clk
0:00:56.4]} 25. Rxd8 {[%clk 0:02:12.7]} 25... Nxd8 {[%clk 0:00:56.3]} 26. a3
{[%clk 0:02:10.9]} 26... Bc6 {[%clk 0:00:53.5]} 27. f3 {[%clk 0:02:03.5]} 27...
Nb7 {[%clk 0:00:47.8]} 28. e4 {[%clk 0:02:02.7]} 28... Nc5 {[%clk 0:00:42.9]}
29. Bf1 {[%clk 0:02:01]} 29... Ra4 {[%clk 0:00:35.7]} 30. Bb4 {[%clk 0:01:55]}
30... Nd7 {[%clk 0:00:28.8]} 31. Rc1 {[%clk 0:01:52.3]} 31... Ne5 {[%clk
0:00:20.5]} 32. f4 {[%clk 0:01:36.6]} 32... Nf3+ {[%clk 0:00:20]} 33. Kf2 {[%clk
0:01:35.9]} 33... Bxe4 {[%clk 0:00:20.1]} 34. Bb5 {[%clk 0:01:30.9]} 34... Rxb4
{[%clk 0:00:16]} 35. axb4 {[%clk 0:01:30.2]} 35... Nd4 {[%clk 0:00:15.5]} 36.
Rc7+ {[%clk 0:01:26.1]} 36... Kf8 {[%clk 0:00:15.5]} 37. Ba4 {[%clk 0:01:21.7]}
37... a6 {[%clk 0:00:13.6]} 38. Ke3 {[%clk 0:01:17.5]} 38... Nf5+ {[%clk
0:00:07.3]} 39. Kxe4 {[%clk 0:01:16.7]} 39... Nd6+ {[%clk 0:00:08.2]} 40. Kd4
{[%clk 0:01:13.8]} 40... Nb5+ {[%clk 0:00:09.1]} 41. Bxb5 {[%clk 0:01:12.9]}
41... axb5 {[%clk 0:00:10]} 42. Kc5 {[%clk 0:01:12.5]} 42... e5 {[%clk
0:00:10.9]} 43. fxe5 {[%clk 0:01:11.7]} 43... fxe5 {[%clk 0:00:11.8]} 44. Kd5
{[%clk 0:01:10.6]} 44... e4 {[%clk 0:00:12.7]} 45. Kxe4 {[%clk 0:01:10.7]} 45...
g5 {[%clk 0:00:11]} 46. g4 {[%clk 0:01:10.2]} 46... h6 {[%clk 0:00:11.1]} 47.
Kf5 {[%clk 0:01:09.6]} 47... Ke8 {[%clk 0:00:12]} 48. Ra7 {[%clk 0:01:08.8]}
48... Kd8 {[%clk 0:00:12.9]} 49. Kg6 {[%clk 0:01:08.2]} 49... Kc8 {[%clk
0:00:13.8]} 50. Rh7 {[%clk 0:01:06.8]} 50... Kb8 {[%clk 0:00:14.7]} 51. Kxh6
{[%clk 0:01:06.4]} 51... Kc8 {[%clk 0:00:15.6]} 52. Kxg5 {[%clk 0:01:06.5]}
52... Kd8 {[%clk 0:00:15.8]} 53. Kf5 {[%clk 0:01:06.7]} 53... Ke8 {[%clk
0:00:16.7]} 54. Ke5 {[%clk 0:01:06.9]} 54... Kf8 {[%clk 0:00:17.6]} 55. Kd5
{[%clk 0:01:07.2]} 55... Kg8 {[%clk 0:00:18.5]} 56. Ra7 {[%clk 0:01:06.9]} 56...
Kh8 {[%clk 0:00:19.4]} 57. Kc5 {[%clk 0:01:06.8]} 57... Kg8 {[%clk 0:00:20.3]}
58. Kxb5 {[%clk 0:01:06.9]} 58... Kf8 {[%clk 0:00:21.2]} 59. Kc5 {[%clk
0:01:07.2]} 59... Ke8 {[%clk 0:00:22.1]} 60. Kd5 {[%clk 0:01:07.6]} 60... Kd8
{[%clk 0:00:23]} 61. Ke5 {[%clk 0:01:08]} 61... Kc8 {[%clk 0:00:23.9]} 62. Kf5
{[%clk 0:01:08.4]} 62... Kb8 {[%clk 0:00:24.8]} 63. Rh7 {[%clk 0:01:07.4]} 63...
Ka8 {[%clk 0:00:25.7]} 64. h4 {[%clk 0:01:06.9]} 64... Kb8 {[%clk 0:00:26.6]}
65. h5 {[%clk 0:01:07.1]} 65... Kc8 {[%clk 0:00:27.5]} 66. h6 {[%clk 0:01:07.4]}
66... Kd8 {[%clk 0:00:28.4]} 67. Rg7 {[%clk 0:01:07.4]} 67... Ke8 {[%clk
0:00:29.3]} 68. g5 {[%clk 0:01:07.4]} 68... Kf8 {[%clk 0:00:30.2]} 69. b5 {[%clk
0:01:07.4]} 69... Ke8 {[%clk 0:00:30.2]} 70. b6 {[%clk 0:01:07.6]} 70... Kd8
{[%clk 0:00:31.1]} 71. b7 {[%clk 0:01:07.7]} 71... Ke8 {[%clk 0:00:30]} 72.
b8=Q# {[%clk 0:01:07.3]} 1-0

[Event "Early-Titled-Tuesday-Blitz-March-12-2024"]
[Site "Chess.com"]
[Date "2024.03.12"]
[Round "3"]
[White "ViktoriyaTarasova"]
[Black "Maxfan2008"]
[Result "0-1"]
[WhiteElo "2303"]
[BlackElo "2595"]
[TimeControl "180+1"]
[EndTime "8:27:58 PDT"]
[Termination "Maxfan2008 won by resignation"]

1. d4 {[%clk 0:03:00.9]} 1... d5 {[%clk 0:02:59.6]} 2. c4 {[%clk 0:03:00.8]}
2... c6 {[%clk 0:03:00]} 3. Nf3 {[%clk 0:03:00.5]} 3... Nf6 {[%clk 0:03:00.5]}
4. Nc3 {[%clk 0:03:00]} 4... e6 {[%clk 0:03:01]} 5. Bg5 {[%clk 0:02:58.7]} 5...
Nbd7 {[%clk 0:03:01.1]} 6. e3 {[%clk 0:02:58.4]} 6... Qa5 {[%clk 0:03:01]} 7.
Nd2 {[%clk 0:02:54]} 7... Bb4 {[%clk 0:03:00.7]} 8. Qc2 {[%clk 0:02:53.9]} 8...
O-O {[%clk 0:02:56.7]} 9. Be2 {[%clk 0:02:52.7]} 9... h6 {[%clk 0:02:56.4]} 10.
Bh4 {[%clk 0:02:47.8]} 10... Re8 {[%clk 0:02:49.5]} 11. O-O {[%clk 0:02:47.2]}
11... e5 {[%clk 0:02:48.6]} 12. Nb3 {[%clk 0:02:42]} 12... Qc7 {[%clk 0:02:39]}
13. Bg3 {[%clk 0:02:36]} 13... dxc4 {[%clk 0:02:30.1]} 14. Bxc4 {[%clk
0:02:34.7]} 14... Bxc3 {[%clk 0:02:29.8]} 15. bxc3 {[%clk 0:02:33.4]} 15... Nh5
{[%clk 0:02:17.6]} 16. Qg6 {[%clk 0:02:16.1]} 16... Nb6 {[%clk 0:02:17.2]} 17.
Bxe5 {[%clk 0:01:55.8]} 17... Nxc4 {[%clk 0:02:14]} 18. Qxh5 {[%clk 0:01:30.7]}
18... Nxe5 {[%clk 0:02:12]} 19. dxe5 {[%clk 0:01:30.3]} 19... Rxe5 {[%clk
0:02:01.5]} 20. Qe2 {[%clk 0:01:24.4]} 20... Be6 {[%clk 0:01:59.7]} 21. Nd4
{[%clk 0:01:22.2]} 21... Bd5 {[%clk 0:01:59.3]} 22. c4 {[%clk 0:01:06]} 22...
Be4 {[%clk 0:01:58.1]} 23. f3 {[%clk 0:00:58.2]} 23... Bg6 {[%clk 0:01:57.2]}
24. Qf2 {[%clk 0:00:54.6]} 24... Rae8 {[%clk 0:01:55]} 25. e4 {[%clk 0:00:54]}
25... Qa5 {[%clk 0:01:42.8]} 26. Nb3 {[%clk 0:00:42.7]} 26... Qa3 {[%clk
0:01:37.3]} 27. Rfe1 {[%clk 0:00:21.6]} 27... a5 {[%clk 0:01:35.7]} 28. h3
{[%clk 0:00:20]} 28... a4 {[%clk 0:01:35.4]} 29. Nd4 {[%clk 0:00:19.9]} 29... f6
{[%clk 0:01:33.8]} 30. Rad1 {[%clk 0:00:16.4]} 30... Bf7 {[%clk 0:01:33.6]} 31.
Qc2 {[%clk 0:00:10.4]} 31... Rc5 {[%clk 0:01:26.5]} 32. Nf5 {[%clk 0:00:07.8]}
32... Rxc4 {[%clk 0:01:23.1]} 33. Qd2 {[%clk 0:00:07.8]} 33... Qc5+ {[%clk
0:01:18.9]} 34. Kh1 {[%clk 0:00:07.2]} 34... Rc2 {[%clk 0:01:18.6]} 35. Qd3
{[%clk 0:00:04.2]} 35... Qf2 {[%clk 0:01:11.6]} 36. Rg1 {[%clk 0:00:03.2]} 36...
Rxa2 {[%clk 0:01:03]} 37. Qd7 {[%clk 0:00:03.7]} 37... Rf8 {[%clk 0:00:50.9]}
38. Nd6 {[%clk 0:00:03.8]} 38... Rd2 {[%clk 0:00:44.1]} 39. Rxd2 {[%clk
0:00:04.1]} 39... Qxd2 {[%clk 0:00:44.9]} 40. Qe7 {[%clk 0:00:04.6]} 40... a3
{[%clk 0:00:40.7]} 41. Nf5 {[%clk 0:00:05.1]} 41... a2 {[%clk 0:00:38.5]} 42.
Nxh6+ {[%clk 0:00:05.4]} 42... Qxh6 {[%clk 0:00:38.2]} 0-1

[Event "Early-Titled-Tuesday-Blitz-March-12-2024"]
[Site "Chess.com"]
[Date "2024.03.12"]
[Round "3"]
[White "Casper"]
[Black "jodarmarlon1985"]
[Result "1-0"]
[WhiteElo "2495"]
[BlackElo "2262"]
[TimeControl "180+1"]
[EndTime "8:27:58 PDT"]
[Termination "Casper won on time"]

1. Nf3 {[%clk 0:03:00.9]} 1... Nf6 {[%clk 0:02:59.4]} 2. b3 {[%clk 0:03:01.4]}
2... d6 {[%clk 0:02:52.2]} 3. Bb2 {[%clk 0:03:02.3]} 3... e5 {[%clk 0:02:52.3]}
4. e3 {[%clk 0:03:02.4]} 4... Be7 {[%clk 0:02:51.4]} 5. d4 {[%clk 0:03:02.8]}
5... e4 {[%clk 0:02:51.4]} 6. Nfd2 {[%clk 0:03:02.6]} 6... O-O {[%clk
0:02:49.9]} 7. c4 {[%clk 0:03:02.3]} 7... c6 {[%clk 0:02:50]} 8. Nc3 {[%clk
0:03:01.4]} 8... d5 {[%clk 0:02:50.2]} 9. Qc2 {[%clk 0:02:57.1]} 9... Re8 {[%clk
0:02:46.7]} 10. f3 {[%clk 0:02:55.6]} 10... exf3 {[%clk 0:02:44.8]} 11. gxf3
{[%clk 0:02:56.5]} 11... Bb4 {[%clk 0:02:23.2]} 12. e4 {[%clk 0:02:40.5]} 12...
dxe4 {[%clk 0:02:12.7]} 13. fxe4 {[%clk 0:02:39.7]} 13... Qxd4 {[%clk
0:02:09.3]} 14. O-O-O {[%clk 0:02:39]} 14... Bg4 {[%clk 0:02:02.3]} 15. Nd5
{[%clk 0:02:33.1]} 15... Bxd1 {[%clk 0:01:49]} 16. Kxd1 {[%clk 0:01:48]} 16...
Qxd2+ {[%clk 0:01:42.3]} 17. Qxd2 {[%clk 0:01:47.5]} 17... Bxd2 {[%clk
0:01:43.2]} 18. Nxf6+ {[%clk 0:01:47.5]} 18... gxf6 {[%clk 0:01:43]} 19. Rg1+
{[%clk 0:01:48]} 19... Bg5 {[%clk 0:01:22.5]} 20. Bxf6 {[%clk 0:01:47.9]} 20...
h6 {[%clk 0:01:21.7]} 21. h4 {[%clk 0:01:45.7]} 21... Nd7 {[%clk 0:01:20.7]} 22.
hxg5 {[%clk 0:01:22.1]} 22... Nxf6 {[%clk 0:01:18.8]} 23. gxf6+ {[%clk 0:01:23]}
23... Kf8 {[%clk 0:01:19.2]} 24. Rh1 {[%clk 0:01:20.5]} 24... Rxe4 {[%clk
0:01:12.5]} 25. Rxh6 {[%clk 0:01:17.7]} 25... Rd8+ {[%clk 0:01:12.8]} 26. Kc2
{[%clk 0:01:17.1]} 26... Ke8 {[%clk 0:01:10.7]} 27. Bh3 {[%clk 0:01:10.2]} 27...
Re6 {[%clk 0:00:11.9]} 28. Bxe6 {[%clk 0:01:04.9]} 28... fxe6 {[%clk 0:00:12.8]}
29. Rh7 {[%clk 0:00:56.7]} 29... Rd7 {[%clk 0:00:12.6]} 30. Rxd7 {[%clk
0:00:24.8]} 30... Kxd7 {[%clk 0:00:13.5]} 31. Kd3 {[%clk 0:00:25.2]} 31... c5
{[%clk 0:00:11.3]} 32. Ke4 {[%clk 0:00:25.2]} 32... Kd6 {[%clk 0:00:11.8]} 33.
a3 {[%clk 0:00:21.1]} 33... b6 {[%clk 0:00:11.3]} 34. b4 {[%clk 0:00:20.5]}
34... a6 {[%clk 0:00:06.6]} 35. Kf4 {[%clk 0:00:18.2]} 35... Kc6 {[%clk
0:00:02]} 36. f7 {[%clk 0:00:17.9]} 1-0

[Event "Early-Titled-Tuesday-Blitz-March-12-2024"]
[Site "Chess.com"]
[Date "2024.03.12"]
[Round "3"]
[White "crosky"]
[Black "NMJeevanK"]
[Result "1-0"]
[WhiteElo "2337"]
[BlackElo "2586"]
[TimeControl "180+1"]
[EndTime "8:27:59 PDT"]
[Termination "crosky won by checkmate"]

1. d4 {[%clk 0:02:45.6]} 1... d5 {[%clk 0:02:54.3]} 2. c4 {[%clk 0:02:45]} 2...
e6 {[%clk 0:02:54.6]} 3. Nc3 {[%clk 0:02:45.1]} 3... Bb4 {[%clk 0:02:54]} 4.
cxd5 {[%clk 0:02:39]} 4... exd5 {[%clk 0:02:53.9]} 5. Nf3 {[%clk 0:02:34.5]}
5... c6 {[%clk 0:02:51.7]} 6. Bf4 {[%clk 0:02:32.3]} 6... Nf6 {[%clk 0:02:49.9]}
7. e3 {[%clk 0:02:32.1]} 7... h6 {[%clk 0:02:49.5]} 8. h3 {[%clk 0:02:30.1]}
8... Bf5 {[%clk 0:02:46.2]} 9. Bd3 {[%clk 0:02:19.9]} 9... Ne4 {[%clk
0:02:43.8]} 10. O-O {[%clk 0:02:09.3]} 10... Bxc3 {[%clk 0:02:36.7]} 11. bxc3
{[%clk 0:02:08.5]} 11... Nxc3 {[%clk 0:02:35.8]} 12. Qc2 {[%clk 0:02:04.2]}
12... Ne4 {[%clk 0:02:28.7]} 13. Rab1 {[%clk 0:02:02.6]} 13... Qe7 {[%clk
0:02:23.9]} 14. Ne5 {[%clk 0:01:50.2]} 14... O-O {[%clk 0:02:18.7]} 15. f3
{[%clk 0:01:49.6]} 15... f6 {[%clk 0:02:01.7]} 16. fxe4 {[%clk 0:01:45.7]} 16...
fxe5 {[%clk 0:01:52.8]} 17. Bxe5 {[%clk 0:01:43.8]} 17... Be6 {[%clk 0:01:33.8]}
18. Rxf8+ {[%clk 0:01:38.9]} 18... Qxf8 {[%clk 0:01:24.6]} 19. Rxb7 {[%clk
0:01:37]} 19... Nd7 {[%clk 0:01:14.5]} 20. exd5 {[%clk 0:01:32.4]} 20... Nxe5
{[%clk 0:00:50.5]} 21. dxe6 {[%clk 0:01:26.5]} 21... Nxd3 {[%clk 0:00:50.2]} 22.
Qxd3 {[%clk 0:01:23.1]} 22... Re8 {[%clk 0:00:50.9]} 23. Qg6 {[%clk 0:01:17.9]}
23... Re7 {[%clk 0:00:36.6]} 24. Rxe7 {[%clk 0:01:05.3]} 24... Qxe7 {[%clk
0:00:37.5]} 25. e4 {[%clk 0:00:50.2]} 25... a5 {[%clk 0:00:36.9]} 26. Kh1 {[%clk
0:00:47.4]} 26... a4 {[%clk 0:00:34.6]} 27. Kg1 {[%clk 0:00:40.5]} 27... a3
{[%clk 0:00:34.4]} 28. Qf7+ {[%clk 0:00:36.2]} 28... Qxf7 {[%clk 0:00:34.4]} 29.
exf7+ {[%clk 0:00:37.1]} 29... Kxf7 {[%clk 0:00:35.1]} 30. Kf2 {[%clk 0:00:38]}
30... Kf6 {[%clk 0:00:30.2]} 31. Ke3 {[%clk 0:00:38.4]} 31... Ke6 {[%clk
0:00:30.1]} 32. Kd3 {[%clk 0:00:38.8]} 32... g5 {[%clk 0:00:29.3]} 33. Kc4
{[%clk 0:00:38.7]} 33... h5 {[%clk 0:00:29.4]} 34. Kb3 {[%clk 0:00:37]} 34... g4
{[%clk 0:00:29.9]} 35. hxg4 {[%clk 0:00:35.8]} 35... hxg4 {[%clk 0:00:30.8]} 36.
g3 {[%clk 0:00:32.1]} 36... Kd6 {[%clk 0:00:26.9]} 37. Kxa3 {[%clk 0:00:30.9]}
37... c5 {[%clk 0:00:27.4]} 38. d5 {[%clk 0:00:27.2]} 38... Ke5 {[%clk
0:00:27.5]} 39. Kb3 {[%clk 0:00:25.7]} 39... Kxe4 {[%clk 0:00:25.5]} 40. d6
{[%clk 0:00:26]} 40... Kf3 {[%clk 0:00:25.9]} 41. d7 {[%clk 0:00:25.8]} 41...
Kxg3 {[%clk 0:00:26.8]} 42. d8=Q {[%clk 0:00:26.4]} 42... Kf2 {[%clk 0:00:27.4]}
43. Kc4 {[%clk 0:00:24.8]} 43... g3 {[%clk 0:00:28.3]} 44. Qg5 {[%clk
0:00:24.3]} 44... g2 {[%clk 0:00:29.2]} 45. a4 {[%clk 0:00:21.1]} 45... Kf1
{[%clk 0:00:25.5]} 46. a5 {[%clk 0:00:18.8]} 46... Kf2 {[%clk 0:00:26.4]} 47. a6
{[%clk 0:00:18.7]} 47... Kf1 {[%clk 0:00:27.3]} 48. a7 {[%clk 0:00:19]} 48...
Kf2 {[%clk 0:00:28.2]} 49. a8=Q {[%clk 0:00:18.2]} 49... g1=Q {[%clk 0:00:29.1]}
50. Qxg1+ {[%clk 0:00:18]} 50... Ke2 {[%clk 0:00:29.3]} 51. Qag2# {[%clk
0:00:17.5]} 1-0

[Event "Early-Titled-Tuesday-Blitz-March-12-2024"]
[Site "Chess.com"]
[Date "2024.03.12"]
[Round "3"]
[White "suyu28"]
[Black "bazar-wokzal"]
[Result "1-0"]
[WhiteElo "2893"]
[BlackElo "2547"]
[TimeControl "180+1"]
[EndTime "8:28:00 PDT"]
[Termination "suyu28 won by checkmate"]

1. d4 {[%clk 0:03:00.9]} 1... Nf6 {[%clk 0:02:57.8]} 2. c4 {[%clk 0:03:01.2]}
2... Nc6 {[%clk 0:02:56.8]} 3. Nf3 {[%clk 0:02:51]} 3... e6 {[%clk 0:02:56.5]}
4. g3 {[%clk 0:02:50.3]} 4... Bb4+ {[%clk 0:02:56]} 5. Nbd2 {[%clk 0:02:47.7]}
5... a5 {[%clk 0:02:56.1]} 6. Bg2 {[%clk 0:02:47.2]} 6... d6 {[%clk 0:02:56.6]}
7. O-O {[%clk 0:02:47.2]} 7... e5 {[%clk 0:02:57.2]} 8. e3 {[%clk 0:02:43.7]}
8... Bg4 {[%clk 0:02:50.6]} 9. h3 {[%clk 0:02:35.5]} 9... Bxd2 {[%clk
0:02:38.6]} 10. Qxd2 {[%clk 0:02:35.2]} 10... Bh5 {[%clk 0:02:27.5]} 11. b3
{[%clk 0:02:28.8]} 11... O-O {[%clk 0:02:26.2]} 12. Bb2 {[%clk 0:02:27.8]} 12...
Re8 {[%clk 0:02:21.2]} 13. a3 {[%clk 0:02:18.7]} 13... e4 {[%clk 0:02:13.8]} 14.
Nh2 {[%clk 0:02:15.1]} 14... d5 {[%clk 0:02:13.6]} 15. Rfc1 {[%clk 0:02:13.2]}
15... Ne7 {[%clk 0:02:10.5]} 16. Bc3 {[%clk 0:02:05.5]} 16... c6 {[%clk
0:02:09.2]} 17. c5 {[%clk 0:01:58.7]} 17... g5 {[%clk 0:01:39]} 18. b4 {[%clk
0:01:56.7]} 18... axb4 {[%clk 0:01:28.6]} 19. axb4 {[%clk 0:01:56.7]} 19... Qd7
{[%clk 0:01:18.2]} 20. Ra5 {[%clk 0:01:53]} 20... Qc7 {[%clk 0:00:53.1]} 21.
Rca1 {[%clk 0:01:50.5]} 21... Rxa5 {[%clk 0:00:52.6]} 22. bxa5 {[%clk
0:01:48.3]} 22... Ra8 {[%clk 0:00:51.1]} 23. Rb1 {[%clk 0:01:48.1]} 23... Nd7
{[%clk 0:00:39.7]} 24. Qb2 {[%clk 0:01:40.8]} 24... Ra7 {[%clk 0:00:39.7]} 25.
Bf1 {[%clk 0:01:37.5]} 25... f5 {[%clk 0:00:32]} 26. Bd2 {[%clk 0:01:37]} 26...
Bf3 {[%clk 0:00:24.1]} 27. Nxf3 {[%clk 0:01:14.8]} 27... exf3 {[%clk 0:00:23.9]}
28. Bd3 {[%clk 0:01:14.4]} 28... h5 {[%clk 0:00:23.2]} 29. Qc2 {[%clk
0:01:11.2]} 29... h4 {[%clk 0:00:18.8]} 30. gxh4 {[%clk 0:01:04.1]} 30... gxh4
{[%clk 0:00:18.8]} 31. Kh1 {[%clk 0:01:01]} 31... Nf6 {[%clk 0:00:17.7]} 32.
Rg1+ {[%clk 0:01:00.3]} 32... Kf7 {[%clk 0:00:16.1]} 33. Bxf5 {[%clk 0:01:00.2]}
33... Ra8 {[%clk 0:00:15.8]} 34. Bg6+ {[%clk 0:00:57]} 34... Ke6 {[%clk
0:00:15.1]} 35. e4 {[%clk 0:00:49.7]} 35... Rg8 {[%clk 0:00:10.4]} 36. e5 {[%clk
0:00:44.9]} 36... Ne4 {[%clk 0:00:10.1]} 37. Bxe4 {[%clk 0:00:41.2]} 37... dxe4
{[%clk 0:00:09.2]} 38. Rxg8 {[%clk 0:00:37.5]} 38... Nxg8 {[%clk 0:00:08.8]} 39.
Qc4+ {[%clk 0:00:38.1]} 39... Kf5 {[%clk 0:00:08.7]} 40. Qxg8 {[%clk 0:00:35.6]}
40... Qd7 {[%clk 0:00:06]} 41. Qg4# {[%clk 0:00:35.1]} 1-0